fUSD/lending_fUSD_20260519
["ID","MTS","AMOUNT","RATE_DAILY","PERIOD"]
[422607893,1779149455000,-151.0,0.0003742,14]
[422607897,1779149455000,-248.0,0.000375,120]
[422607895,1779149455000,-500.0,0.00037488,35]
[422607899,1779149455000,-500.0,0.00037552,37]
[422607894,1779149455000,-331.703333,0.00037473,37]
[422607896,1779149455000,-500.0,0.00037499,37]
[422607900,1779149455000,-157.69,0.00037553,60]
[422607901,1779149455000,-22046.0,0.000376,30]
[422607866,1779149455000,-500.0,0.0003709,35]
[422607885,1779149455000,-221.351096,0.0003739,7]
[422607889,1779149455000,-328.299166,0.00037391,36]
[422607898,1779149455000,-159.33,0.0003752,60]
[422607883,1779149455000,-151.0,0.0003739,7]
[422607868,1779149455000,-797.53523944,0.00037141,2]
[422607886,1779149455000,-221.351096,0.0003739,7]
[422607869,1779149455000,-158.486,0.00037179,2]
[422607874,1779149455000,-5736.88,0.00037192,30]
[422607872,1779149455000,-500.0,0.00037188,60]
[422607870,1779149455000,-180.0717,0.00037179,2]
[422607871,1779149455000,-434.84399284,0.00037188,60]
[422607873,1779149455000,-1300.0,0.00037188,60]
[422607877,1779149455000,-500.0,0.00037386,36]
[422607875,1779149455000,-314.245263,0.000372,36]
[422607880,1779149455000,-151.0,0.00037389,7]
[422607878,1779149455000,-500.0,0.00037387,36]
[422607882,1779149455000,-151.0,0.00037389,7]
[422607881,1779149455000,-151.0,0.00037389,7]
[422607876,1779149455000,-389.41,0.0003737,7]
[422607879,1779149455000,-151.0,0.00037389,7]
[422607968,1779149456000,-500.0,0.00038122,40]
[422607966,1779149456000,-500.0,0.00038122,40]
[422607964,1779149456000,-151.0,0.00038099,33]
[422607969,1779149456000,-601.3376128,0.00038122,40]
[422607967,1779149456000,-2718.57489474,0.00038122,40]
[422607965,1779149456000,-381.86389899,0.000381,33]
[422607962,1779149456000,-181.08010149,0.00038099,33]
[422607961,1779149456000,-152.0,0.00038099,33]
[422607960,1779149456000,-151.0,0.00038099,33]
[422607971,1779149456000,-200.0,0.00038122,40]
[422607958,1779149456000,-151.0,0.00038099,33]
[422607963,1779149456000,-1000.0,0.00038099,33]
[422607981,1779149456000,-716.97946142,0.00038122,40]
[422607972,1779149456000,-578.20924308,0.00038122,40]
[422607977,1779149456000,-151.0,0.00038122,40]
[422607978,1779149456000,-152.0,0.00038122,40]
[422607973,1779149456000,-174.61919141,0.00038122,40]
[422607976,1779149456000,-174.61919141,0.00038122,40]
[422607979,1779149456000,-174.61919141,0.00038122,40]
[422607975,1779149456000,-151.0,0.00038122,40]
[422607974,1779149456000,-185.02695779,0.00038122,40]
[422607982,1779149456000,-151.0,0.00038122,40]
[422607984,1779149456000,-151.12,0.00038143,2]
[422607986,1779149456000,-183.12589069,0.000382,30]
[422607987,1779149456000,-183.12589069,0.000382,30]
[422607959,1779149456000,-181.08010149,0.00038099,33]
[422607970,1779149456000,-174.61919141,0.00038122,40]
[422607956,1779149456000,-181.08010149,0.00038099,33]
[422607938,1779149456000,-152.0,0.00038,120]
[422607953,1779149456000,-181.08010149,0.00038099,33]
[422607934,1779149456000,-1000.0,0.00037999,33]
[422607927,1779149456000,-187.78006525,0.00037999,33]
[422607931,1779149456000,-151.0,0.00037999,33]
[422607930,1779149456000,-187.78006525,0.00037999,33]
[422607933,1779149456000,-187.78006525,0.00037999,33]
[422607929,1779149456000,-151.0,0.00037999,33]
[422607928,1779149456000,-198.97225456,0.00037999,33]
[422607932,1779149456000,-152.0,0.00037999,33]
[422607936,1779149456000,-151.0,0.00037999,33]
[422607935,1779149456000,-1000.0,0.00037999,39]
[422607937,1779149456000,-3132.58651031,0.00038,3]
[422607940,1779149456000,-150000.0,0.00038,120]
[422607985,1779149456000,-334.2,0.00038192,14]
[422607954,1779149456000,-200.0,0.00038099,33]
[422607939,1779149456000,-157.0,0.00038,120]
[422607943,1779149456000,-248.0,0.00038,120]
[422607946,1779149456000,-157.8082295,0.00038072,2]
[422607942,1779149456000,-1560.83285836,0.00038,2]
[422607945,1779149456000,-1300.0,0.0003801,60]
[422607941,1779149456000,-238687.00574707,0.00038,2]
[422607948,1779149456000,-158.4862,0.00038086,2]
[422607952,1779149456000,-623.58710448,0.00038099,33]
[422607947,1779149456000,-330.0,0.00038082,48]
[422607949,1779149456000,-180.0717,0.00038086,2]
[422607951,1779149456000,-500.0,0.00038099,33]
[422607950,1779149456000,-500.0,0.00038099,33]
[422607957,1779149456000,-191.87295522,0.00038099,33]
[422607955,1779149456000,-428.15185578,0.00038099,33]
[422607944,1779149456000,-500.0,0.0003801,60]
[422607989,1779149456000,-877.73010135,0.000382,30]
[422607980,1779149456000,-1000.0,0.00038122,40]
[422607983,1779149456000,-536.4,0.00038125,30]
[422608032,1779149456000,-152.0,0.00038355,30]
[422608022,1779149456000,-200.0,0.00038355,30]
[422608028,1779149456000,-151.0,0.00038355,30]
[422608033,1779149456000,-168.3888056,0.00038355,30]
[422608027,1779149456000,-1107.63007,0.00038355,30]
[422608029,1779149456000,-178.42522448,0.00038355,30]
[422608020,1779149456000,-579.88197956,0.00038355,30]
[422608021,1779149456000,-168.3888056,0.00038355,30]
[422608024,1779149456000,-1613.0535,0.00038355,30]
[422608026,1779149456000,-168.3888056,0.00038355,30]
[422608030,1779149456000,-168.3888056,0.00038355,30]
[422608036,1779149456000,-151.0,0.00038355,30]
[422608039,1779149456000,-500.0,0.00038356,2]
[422608037,1779149456000,-500.0,0.00038356,2]
[422608038,1779149456000,-500.0,0.00038356,2]
[422608035,1779149456000,-691.39774486,0.00038355,30]
[422608040,1779149456000,-500.0,0.00038356,2]
[422608041,1779149456000,-500.0,0.00038356,2]
[422608042,1779149456000,-500.0,0.00038356,2]
[422608045,1779149456000,-500.0,0.00038356,2]
[422608044,1779149456000,-500.0,0.00038356,2]
[422608043,1779149456000,-500.0,0.00038356,2]
[422608034,1779149456000,-1000.0,0.00038355,30]
[422608048,1779149456000,-1436.81,0.00038356,2]
[422608046,1779149456000,-185.9572058,0.00038356,2]
[422608047,1779149456000,-1436.81,0.00038356,2]
[422607990,1779149456000,-877.73010135,0.000382,30]
[422608025,1779149456000,-557.5788265,0.00038355,30]
[422608031,1779149456000,-151.0,0.00038355,30]
[422608023,1779149456000,-557.5788265,0.00038355,30]
[422608014,1779149456000,-152.0,0.00038331,5]
[422608016,1779149456000,-7681.20591386,0.00038355,30]
[422607991,1779149456000,-2150.35207323,0.000382,30]
[422607992,1779149456000,-357.01510371,0.00038203,14]
[422607993,1779149456000,-885.05900896,0.00038218,2]
[422607994,1779149456000,-358.51,0.00038229,14]
[422607996,1779149456000,-430.6267672,0.0003823,120]
[422607995,1779149456000,-171.8920961,0.0003823,120]
[422608006,1779149456000,-2950.19669653,0.00038249,2]
[422608007,1779149456000,-248.0,0.0003825,120]
[422607999,1779149456000,-500.0,0.0003823,120]
[422607998,1779149456000,-500.0,0.0003823,120]
[422607997,1779149456000,-500.0,0.0003823,120]
[422608000,1779149456000,-500.0,0.0003823,120]
[422608001,1779149456000,-843.8259427,0.0003823,120]
[422607988,1779149456000,-877.73010136,0.000382,30]
[422608005,1779149456000,-162.1132023,0.0003823,120]
[422608003,1779149456000,-500.0,0.0003823,120]
[422608018,1779149456000,-168.38880561,0.00038355,30]
[422608013,1779149456000,-2221.0,0.00038329,120]
[422608019,1779149456000,-500.0,0.00038355,30]
[422608017,1779149456000,-500.0,0.00038355,30]
[422608010,1779149456000,-2011.0,0.00038329,120]
[422608012,1779149456000,-2221.0,0.00038329,120]
[422608015,1779149456000,-157.8082295,0.00038345,2]
[422608009,1779149456000,-150.25245185,0.000383,120]
[422608008,1779149456000,-280.93,0.00038276,60]
[422608002,1779149456000,-500.0,0.0003823,120]
[422608004,1779149456000,-772.0604036,0.0003823,120]
[422608011,1779149456000,-2011.0,0.00038329,120]
[422608088,1779149457000,-500.0,0.00038356,2]
[422608087,1779149457000,-500.0,0.00038356,2]
[422608090,1779149457000,-500.0,0.00038356,2]
[422608080,1779149457000,-500.0,0.00038356,2]
[422608089,1779149457000,-500.0,0.00038356,2]
[422608084,1779149457000,-500.0,0.00038356,2]
[422608086,1779149457000,-500.0,0.00038356,2]
[422608081,1779149457000,-500.0,0.00038356,2]
[422608082,1779149457000,-500.0,0.00038356,2]
[422608083,1779149457000,-500.0,0.00038356,2]
[422608094,1779149457000,-500.0,0.00038356,2]
[422608085,1779149457000,-500.0,0.00038356,2]
[422608093,1779149457000,-500.0,0.00038356,2]
[422608095,1779149457000,-277.68009203,0.00038356,2]
[422608102,1779149457000,-500.0,0.00038356,120]
[422608092,1779149457000,-500.0,0.00038356,2]
[422608103,1779149457000,-500.0,0.00038356,120]
[422608098,1779149457000,-500.0,0.00038356,120]
[422608101,1779149457000,-500.0,0.00038356,120]
[422608097,1779149457000,-500.0,0.00038356,120]
[422608096,1779149457000,-374.2529762,0.00038356,120]
[422608100,1779149457000,-500.0,0.00038356,120]
[422608099,1779149457000,-500.0,0.00038356,120]
[422608107,1779149457000,-6178.85257167,0.00038356,15]
[422608104,1779149457000,-500.0,0.00038356,120]
[422608106,1779149457000,-209.03329085,0.00038356,2]
[422608078,1779149457000,-500.0,0.00038356,2]
[422608091,1779149457000,-500.0,0.00038356,2]
[422608077,1779149457000,-500.0,0.00038356,2]
[422608108,1779149457000,-159.33,0.0003836,105]
[422608071,1779149457000,-5800.0,0.00038356,2]
[422608051,1779149457000,-1436.81,0.00038356,2]
[422608055,1779149457000,-1436.81,0.00038356,2]
[422608054,1779149457000,-1436.81,0.00038356,2]
[422608057,1779149457000,-1436.81,0.00038356,2]
[422608050,1779149457000,-1436.81,0.00038356,2]
[422608052,1779149457000,-1436.81,0.00038356,2]
[422608056,1779149457000,-1436.81,0.00038356,2]
[422608053,1779149457000,-1436.81,0.00038356,2]
[422608049,1779149457000,-1436.81,0.00038356,2]
[422608058,1779149457000,-1436.81,0.00038356,2]
[422608062,1779149457000,-1436.81,0.00038356,2]
[422608061,1779149457000,-1436.81,0.00038356,2]
[422608060,1779149457000,-1436.81,0.00038356,2]
[422608063,1779149457000,-1436.81,0.00038356,2]
[422608064,1779149457000,-1436.81,0.00038356,2]
[422608059,1779149457000,-1436.81,0.00038356,2]
[422608065,1779149457000,-1436.81,0.00038356,2]
[422608068,1779149457000,-1436.81,0.00038356,2]
[422608067,1779149457000,-1436.81,0.00038356,2]
[422608066,1779149457000,-1436.81,0.00038356,2]
[422608070,1779149457000,-1436.82815674,0.00038356,2]
[422608069,1779149457000,-1436.81,0.00038356,2]
[422608072,1779149457000,-4078.23738575,0.00038356,2]
[422608073,1779149457000,-500.0,0.00038356,2]
[422608075,1779149457000,-500.0,0.00038356,2]
[422608076,1779149457000,-500.0,0.00038356,2]
[422608074,1779149457000,-500.0,0.00038356,2]
[422608079,1779149457000,-500.0,0.00038356,2]
[422608109,1779149457000,-1268.52,0.00038391,30]
[422608118,1779149457000,-500.0,0.00038575,120]
[422608116,1779149457000,-167.91,0.00038548,6]
[422608144,1779149457000,-162.380719,0.00038799,30]
[422608155,1779149457000,-500.0,0.00038831,37]
[422608154,1779149457000,-7142.856,0.00038831,37]
[422608151,1779149457000,-1452.66334849,0.00038831,2]
[422608148,1779149457000,-290.564962,0.000388,43]
[422608145,1779149457000,-1000.0,0.00038799,30]
[422608147,1779149457000,-151.0,0.00038799,30]
[422608146,1779149457000,-666.72878,0.00038799,30]
[422608156,1779149457000,-500.0,0.00038831,37]
[422608152,1779149457000,-14420.32839644,0.00038831,2]
[422608153,1779149457000,-156.587,0.00038831,37]
[422608150,1779149457000,-22046.0,0.000388,30]
[422608149,1779149457000,-200.0,0.000388,16]
[422608157,1779149457000,-539.24,0.00038831,37]
[422608169,1779149457000,-156.587,0.00038831,37]
[422608158,1779149457000,-156.587,0.00038831,37]
[422608168,1779149457000,-152.0,0.00038831,37]
[422608161,1779149457000,-518.5,0.00038831,37]
[422608159,1779149457000,-200.0,0.00038831,37]
[422608167,1779149457000,-260.287,0.00038831,37]
[422608162,1779149457000,-156.587,0.00038831,37]
[422608163,1779149457000,-165.92,0.00038831,37]
[422608160,1779149457000,-518.5,0.00038831,37]
[422608164,1779149457000,-151.0,0.00038831,37]
[422608166,1779149457000,-151.0,0.00038831,37]
[422608165,1779149457000,-156.587,0.00038831,37]
[422608111,1779149457000,-3696.07,0.000384,2]
[422608140,1779149457000,-162.380719,0.00038799,30]
[422608138,1779149457000,-151.0,0.00038799,30]
[422608143,1779149457000,-152.0,0.00038799,30]
[422608139,1779149457000,-172.05904,0.00038799,30]
[422608105,1779149457000,-500.0,0.00038356,120]
[422608110,1779149457000,-9240.16,0.000384,2]
[422608115,1779149457000,-251.88029157,0.000385,120]
[422608114,1779149457000,-82530.60930037,0.000385,3]
[422608112,1779149457000,-1478.43,0.000384,2]
[422608135,1779149457000,-537.6845,0.00038799,30]
[422608170,1779149457000,-1000.0,0.00038831,37]
[422608129,1779149457000,-500.0,0.00038799,30]
[422608128,1779149457000,-162.380719,0.00038799,30]
[422608119,1779149457000,-157.8082295,0.00038619,2]
[422608117,1779149457000,-482.53776993,0.00038558,90]
[422608120,1779149457000,-1088.249,0.00038674,52]
[422608127,1779149457000,-500.0,0.00038799,30]
[422608122,1779149457000,-2241.992,0.00038677,2]
[422608113,1779149457000,-152.0,0.000385,120]
[422608123,1779149457000,-165.0,0.0003871,120]
[422608124,1779149457000,-300.0,0.0003877,2]
[422608136,1779149457000,-162.380719,0.00038799,30]
[422608137,1779149457000,-1068.11,0.00038799,30]
[422608142,1779149457000,-269.917619,0.00038799,30]
[422608130,1779149457000,-559.19188,0.00038799,30]
[422608131,1779149457000,-162.380719,0.00038799,30]
[422608134,1779149457000,-1555.5,0.00038799,30]
[422608141,1779149457000,-151.0,0.00038799,30]
[422608132,1779149457000,-200.0,0.00038799,30]
[422608125,1779149457000,-400.0,0.0003877,2]
[422608126,1779149457000,-7407.141672,0.00038799,30]
[422608121,1779149457000,-994.596,0.00038675,30]
[422608133,1779149457000,-537.6845,0.00038799,30]
[422608189,1779149458000,-443.46295567,0.0002779,2]
[422608182,1779149458000,-2150.35207322,0.000382,30]
[422608187,1779149458000,-276.23295567,0.00027137,2]
[422608185,1779149458000,-151.0,0.000194,2]
[422608186,1779149458000,-171.44230366,0.000195,2]
[422608181,1779149458000,-200.0,0.0003,2]
[422608184,1779149458000,-503.00569616,0.00038832,6]
[422608183,1779149458000,-2226318.27381242,0.00038832,6]
[422608179,1779149458000,-150.0,0.00019,2]
[422608174,1779149458000,-1300.0,0.00038832,60]
[422608178,1779149458000,-403.60314655,0.00013699,2]
[422608176,1779149458000,-500.0,0.00010699,2]
[422608177,1779149458000,-596.39685345,0.00013699,2]
[422608173,1779149458000,-500.0,0.00038832,60]
[422608172,1779149458000,-151.0,0.00038831,37]
[422608175,1779149458000,-2375164.34887575,0.00038832,6]
[422608171,1779149458000,-642.94,0.00038831,37]
[422608191,1779149458000,-324.0,0.00027899,10]
[422608180,1779149458000,-40485.17,0.00027397,10]
[422608193,1779149458000,-113.46295567,0.00029095,4]
[422608196,1779149458000,-503.0,0.000304,5]
[422608194,1779149458000,-389.53704433,0.00029095,4]
[422608188,1779149458000,-226.76704433,0.00027137,2]
[422608209,1779149458000,-503.0,0.00036926,12]
[422608210,1779149458000,-503.0,0.00037579,13]
[422608208,1779149458000,-503.0,0.00036274,12]
[422608206,1779149458000,-503.0,0.00034969,10]
[422608207,1779149458000,-503.0,0.00035621,11]
[422608203,1779149458000,-503.0,0.00033663,9]
[422608205,1779149458000,-166.90818873,0.00034316,9]
[422608204,1779149458000,-336.09181127,0.00034316,9]
[422608212,1779149458000,-96815.09758807,0.00038832,6]
[422608200,1779149458000,-503.0,0.00033011,8]
[422608202,1779149458000,-3518.074088,0.00038832,6]
[422608199,1779149458000,-503.0,0.00032358,7]
[422608198,1779149458000,-503.0,0.00031705,7]
[422608197,1779149458000,-503.0,0.00031053,6]
[422608195,1779149458000,-503.0,0.00029748,4]
[422608211,1779149458000,-503.0,0.00038232,14]
[422608192,1779149458000,-503.0,0.00028442,3]
[422608190,1779149458000,-59.53704433,0.0002779,2]
[422608201,1779149458000,-2150.35207322,0.000382,30]
[422608214,1779149689000,2000.0,0.00027881,120]
[422608216,1779149723000,-408.0066,0.00013598,2]
[422608217,1779149723000,-543.0,0.00013697,2]
[422608215,1779149723000,-157.25023656,0.00013598,2]
[422608219,1779149723000,-300.0,0.00013697,2]
[422608220,1779149723000,-500.0,0.00013698,2]
[422608218,1779149723000,-229.0,0.00013697,2]
[422608221,1779149724000,-500.0,0.00013698,2]
[422608222,1779149724000,-500.0,0.00013698,2]
[422608223,1779149724000,-500.0,0.00013698,2]
[422608224,1779149724000,-500.0,0.00013698,2]
[422608226,1779149724000,-500.0,0.00013698,2]
[422608225,1779149724000,-500.0,0.00013698,2]
[422608227,1779149724000,-500.0,0.00013698,2]
[422608228,1779149724000,-500.0,0.00013698,2]
[422608230,1779149724000,-500.0,0.00013698,2]
[422608231,1779149724000,-500.0,0.00013698,2]
[422608229,1779149724000,-500.0,0.00013698,2]
[422608232,1779149724000,-500.0,0.00013698,2]
[422608235,1779149724000,-500.0,0.00013698,2]
[422608234,1779149724000,-500.0,0.00013698,2]
[422608236,1779149724000,-500.0,0.00013698,2]
[422608237,1779149724000,-500.0,0.00013698,2]
[422608239,1779149724000,-500.0,0.00013698,2]
[422608238,1779149724000,-500.0,0.00013698,2]
[422608241,1779149724000,-500.0,0.00013698,2]
[422608240,1779149724000,-500.0,0.00013698,2]
[422608242,1779149724000,-500.0,0.00013698,2]
[422608244,1779149724000,-500.0,0.00013698,2]
[422608243,1779149724000,-500.0,0.00013698,2]
[422608245,1779149724000,-262.74316344,0.00013698,2]
[422608233,1779149724000,-500.0,0.00013698,2]
[422608246,1779149841000,500.0,0.00027719,120]
[422608247,1779149878000,500.0,0.00027719,120]
[422608248,1779149928000,500.0,0.00027719,120]
[422608265,1779149960000,-511.44,0.00013698,2]
[422608264,1779149960000,-511.44,0.00013698,2]
[422608260,1779149960000,-511.44,0.00013698,2]
[422608263,1779149960000,-511.44,0.00013698,2]
[422608262,1779149960000,-511.44,0.00013698,2]
[422608261,1779149960000,-511.44,0.00013698,2]
[422608259,1779149960000,-511.44,0.00013698,2]
[422608257,1779149960000,-511.44,0.00013698,2]
[422608251,1779149960000,-300.0,0.00013697,2]
[422608256,1779149960000,-511.44,0.00013698,2]
[422608255,1779149960000,-511.44,0.00013698,2]
[422608253,1779149960000,-330.13380183,0.00013698,2]
[422608254,1779149960000,-511.44,0.00013698,2]
[422608252,1779149960000,-250.0,0.00013698,2]
[422608249,1779149960000,-500.0,0.00013498,2]
[422608266,1779149960000,-511.44,0.00013698,2]
[422608258,1779149960000,-511.44,0.00013698,2]
[422608267,1779149960000,-511.44,0.00013698,2]
[422608250,1779149960000,-150.0,0.00013697,2]
[422608269,1779149960000,-511.44,0.00013698,2]
[422608286,1779149960000,-300.0,0.00013752,2]
[422608284,1779149960000,-300.0,0.00013752,2]
[422608285,1779149960000,-300.0,0.00013752,2]
[422608282,1779149960000,-250.0,0.00013731,2]
[422608283,1779149960000,-300.0,0.00013752,2]
[422608280,1779149960000,-500.0,0.00013698,2]
[422608281,1779149960000,-559.55314463,0.00013698,2]
[422608278,1779149960000,-500.0,0.00013698,2]
[422608268,1779149960000,-511.44,0.00013698,2]
[422608276,1779149960000,-511.44,0.00013698,2]
[422608277,1779149960000,-511.47660207,0.00013698,2]
[422608274,1779149960000,-511.44,0.00013698,2]
[422608275,1779149960000,-511.44,0.00013698,2]
[422608273,1779149960000,-511.44,0.00013698,2]
[422608272,1779149960000,-511.44,0.00013698,2]
[422608270,1779149960000,-511.44,0.00013698,2]
[422608271,1779149960000,-511.44,0.00013698,2]
[422608279,1779149960000,-500.0,0.00013698,2]
[422608288,1779149961000,-250.0,0.00014,2]
[422608287,1779149961000,-208.5339928,0.00013777,2]
[422608291,1779149961000,-209.77764235,0.00014648,2]
[422608289,1779149961000,-3472.8984539,0.00014549,2]
[422608292,1779149961000,-352.17186203,0.00014648,2]
[422608290,1779149961000,-3192.33450039,0.00014549,2]
[422608293,1779149962000,-1052.78168122,0.00013686,2]
[422608294,1779149962000,-147.82813797,0.00014648,2]
[422608297,1779149962000,-22913.98748766,0.00014649,2]
[422608296,1779149962000,-500.0,0.00014648,2]
[422608295,1779149962000,-385.40269315,0.00014648,2]
[422608298,1779149987000,500.0,0.00027719,120]
[422608299,1779150000000,500.0,0.00027719,120]
[422608306,1779150007000,-11690.36623838,0.00014639,2]
[422608305,1779150007000,-2894.08204495,0.00014549,2]
[422608303,1779150007000,-300.0,0.00014549,2]
[422608304,1779150007000,-8508.55171667,0.00014549,2]
[422608302,1779150007000,-250.0,0.00014548,2]
[422608301,1779150007000,-1200.0,0.00014548,2]
[422608300,1779150007000,-157.0,0.00014548,2]
[422608307,1779150008000,-10511.35376162,0.00014639,2]
[422608308,1779150008000,-14488.64623838,0.00014639,2]
[422608310,1779150008000,-17286.92623838,0.00014649,2]
[422608309,1779150008000,-7713.07376162,0.00014639,2]
[422608311,1779150009000,-25000.0,0.00014649,2]
[422608312,1779150010000,-25000.0,0.00014649,2]
[422608313,1779150012000,-25000.0,0.00014649,2]
[422608314,1779150013000,-25000.0,0.00014649,2]
[422608315,1779150014000,-25000.0,0.00014649,2]
[422608316,1779150026000,500.0,0.00027719,120]
[422608317,1779150086000,213.665903,0.00027165,120]
[422608318,1779150094000,978.983979,0.00026849,120]
[422608319,1779150096000,4209.89223,0.00026849,120]
[422608320,1779150103000,500.0,0.00027719,120]
[422608321,1779150126000,500.0,0.00027719,120]
[422608322,1779150161000,500.0,0.00027719,120]
[422608326,1779150295000,500.0,0.00027719,120]
[422608327,1779150313000,500.0,0.00027719,120]
[422608329,1779150366000,500.0,0.00027719,120]
[422608333,1779150442000,500.0,0.00027719,120]
[422608335,1779150473000,500.0,0.00027719,120]
[422608336,1779150518000,500.0,0.00027719,120]
[422608343,1779150631000,-150.0,0.00013385,2]
[422608342,1779150631000,-1047.33,0.000124,2]
[422608345,1779150631000,-670.74671791,0.00013473,2]
[422608346,1779150631000,-389.39725296,0.00013491,2]
[422608344,1779150631000,-606.73328209,0.00013473,2]
[422608347,1779150631000,-810.60274704,0.00013491,2]
[422608348,1779150631000,-858.37293673,0.00013492,2]
[422608351,1779150631000,-7620.5244942,0.00013492,2]
[422608350,1779150631000,-1600.33,0.00013492,2]
[422608349,1779150631000,-906.78256907,0.00013492,2]
[422608378,1779150632000,-617.49043702,0.00014491,2]
[422608379,1779150632000,-8669.70704308,0.00014491,2]
[422608375,1779150632000,-214.7115,0.00014491,2]
[422608371,1779150632000,-3070.07,0.00014352,2]
[422608366,1779150632000,-166.66,0.00014282,2]
[422608376,1779150632000,-8199.79661047,0.00014491,2]
[422608377,1779150632000,-282.87579972,0.00014491,2]
[422608374,1779150632000,-160.0,0.00014448,2]
[422608373,1779150632000,-215.11887611,0.00014448,2]
[422608372,1779150632000,-166.66,0.00014428,2]
[422608369,1779150632000,-184.509,0.00014299,2]
[422608368,1779150632000,-1590.226,0.00014299,2]
[422608367,1779150632000,-166.66,0.00014292,2]
[422608356,1779150632000,-107450.32,0.00013602,2]
[422608365,1779150632000,-166.66,0.00014136,2]
[422608363,1779150632000,-166.66,0.00013845,2]
[422608360,1779150632000,-403.60314655,0.00013699,2]
[422608362,1779150632000,-166.66,0.00013835,2]
[422608361,1779150632000,-156.04,0.00013783,2]
[422608359,1779150632000,-200.0,0.00013699,2]
[422608358,1779150632000,-2500.0,0.00013699,2]
[422608357,1779150632000,-166.66,0.00013699,2]
[422608354,1779150632000,-8329.64655476,0.00013592,2]
[422608355,1779150632000,-150.0,0.00013601,2]
[422608353,1779150632000,-250.0,0.00013578,2]
[422608352,1779150632000,-200.0,0.00013556,2]
[422608364,1779150632000,-166.66,0.00013991,2]
[422608380,1779150632000,-2411.73503745,0.00014491,2]
[422608386,1779150632000,-500.0,0.0001459,2]
[422608381,1779150632000,-500.0,0.0001459,2]
[422608409,1779150632000,-66.90019598,0.00014591,2]
[422608410,1779150632000,-21918.62055404,0.00014591,2]
[422608407,1779150632000,-8225.54603202,0.00014591,2]
[422608408,1779150632000,-1405.13503512,0.00014591,2]
[422608405,1779150632000,-17044.50720374,0.00014591,2]
[422608406,1779150632000,-22917.67539416,0.00014591,2]
[422608382,1779150632000,-500.0,0.0001459,2]
[422608404,1779150632000,-366.88854828,0.00014591,2]
[422608396,1779150632000,-335.69906046,0.0001459,2]
[422608399,1779150632000,-500.0,0.0001459,2]
[422608398,1779150632000,-500.0,0.0001459,2]
[422608401,1779150632000,-529729.30292265,0.00014591,2]
[422608402,1779150632000,-68048.18152252,0.00014591,2]
[422608403,1779150632000,-52452.02345615,0.00014591,2]
[422608397,1779150632000,-500.0,0.0001459,2]
[422608395,1779150632000,-500.0,0.0001459,2]
[422608394,1779150632000,-500.0,0.0001459,2]
[422608393,1779150632000,-500.0,0.0001459,2]
[422608392,1779150632000,-500.0,0.0001459,2]
[422608391,1779150632000,-500.0,0.0001459,2]
[422608390,1779150632000,-500.0,0.0001459,2]
[422608384,1779150632000,-500.0,0.0001459,2]
[422608387,1779150632000,-500.0,0.0001459,2]
[422608389,1779150632000,-500.0,0.0001459,2]
[422608388,1779150632000,-556.35961766,0.0001459,2]
[422608385,1779150632000,-500.0,0.0001459,2]
[422608383,1779150632000,-351.68560591,0.0001459,2]
[422608400,1779150632000,-420.7320322,0.0001459,2]
[422608411,1779150633000,-900.10494811,0.00014591,2]
[422608446,1779150638000,-842.37,0.00014649,2]